[Event "Nordic Youth-ch A 2019"]
[Site "Borgarnes"]
[Date "2019.02.17"]
[Round "6.10"]
[White "Fuglestein, Sander"]
[Black "Vitenberg, Noam Aviv"]
[Result "0-1"]
[ECO "E04"]
[WhiteElo "2024"]
[BlackElo "2180"]
[Annotator "NA"]
[PlyCount "62"]
[EventDate "2019.02.03"]
[EventType "swiss"]
[EventCountry "ISL"]
[SourceTitle "playchess.com"]
[Source "ChessBase"]
[SourceQuality "1"]
[TimeControl "5400+30"]

1. d4 d5 2. c4 e6 3. Nf3 Nf6 4. g3 dxc4 5. Bg2 a6 6. a4 Nc6 7. O-O Rb8 8. e3 {E04: Open Catalan: 5 Nf3} b5 (8... Be7 9. Nfd2 e5 10. Bxc6+ bxc6 11. dxe5 Ng4 12. Nxc4 Qd5 13. Qd4 Bc5 14. Qc3 Bb4 15. Qd4 Bc5 16. Qc3 Bb4 17. Qd4 Bc5 {½-½ (17) Arvola,B (2493)-Nikolaidis,I (2544) Batumi 2018}) 9. Qe2 Bb7 10. Rd1 Bb4 $146 ({Predecessor:} 10... Nb4 11. axb5 axb5 12. Nc3 Be7 13. Ne5 Bxg2 14. Kxg2 O-O 15. Qf3 Qc8 {0-1 (61) Scheiblmaier,R (2208)-Rusche,J (2221) Austria 2014}) 11. Nc3 Bxc3 12. bxc3 Ne7 13. Ne5 Bxg2 14. Kxg2 Nfd5 15. Bb2 O-O 16. e4 Nb6 17. axb5 axb5 18. Ba3 Ra8 19. Rdb1 f6 20. Nf3 c6 21. Qe3 Re8 22. h4 Qc7 23. h5 Ra4 (23... h6 $17) 24. Bc5 Rea8 25. Rxa4 Nxa4 26. Bb4 h6 27. Nh2 c5 ({Black should try} 27... e5 $17 28. Ng4 Rd8) 28. Bxc5 Nxc5 29. dxc5 Qc6 30. Rd1 Rc8 31. Rd6 Nf5 $19 {Double Attack} 0-1

[Event "Nordic Youth-ch A 2019"]
[Site "Borgarnes"]
[Date "2019.02.17"]
[Round "6.11"]
[White "Mitra, Akash"]
[Black "Aalto, Patrik"]
[Result "1/2-1/2"]
[ECO "B23"]
[WhiteElo "1916"]
[BlackElo "1985"]
[Annotator "NA"]
[PlyCount "115"]
[EventDate "2019.02.03"]
[EventType "swiss"]
[EventCountry "ISL"]
[SourceTitle "playchess.com"]
[Source "ChessBase"]
[SourceQuality "1"]
[TimeControl "5400+30"]

1. e4 {[%emt 0:00:00]} c5 {[%emt 0:00:00]} 2. Nc3 {[%emt 0:00:00]} Nc6 {[%emt 0:00:08]} 3. f4 {[%emt 0:00:17]} g6 {[%emt 0:00:30]} 4. Nf3 {[%emt 0:01:06]} Bg7 {[%emt 0:00:03]} 5. Bb5 {[%emt 0:00:28]} Nd4 {[%emt 0:16:36]} 6. O-O {[%emt 0:01:03]} Nxb5 {[%emt 0:00:30]} 7. Nxb5 {[%emt 0:01:31]} d6 {[%emt 0:03:32]} 8. d3 {[%emt 0:00:30]} a6 {[%emt 0:02:08]} 9. Nc3 {[%emt 0:00:35]} e6 {[%emt 0:01:56]} 10. Qe1 {[%emt 0:03:00]} Ne7 {[%emt 0:01:13]} 11. Be3 {[%emt 0:00:28]} O-O {[%emt 0:04:50]} 12. Qh4 {[%emt 0:08:54]} Nc6 {[%emt 0:18:40]} 13. Qf2 {[%emt 0:11:09]} b6 {[%emt 0:07:22] B23: Closed Sicilian: Lines without g3} 14. Rad1 $146 {[%emt 0:01:16]} ({Predecessor:} 14. Rae1) 14... d5 {[%emt 0:04:18]} 15. d4 {[%emt 0:02:00]} c4 $1 {[%emt 0:00:35]} 16. e5 {[%emt 0:00:23]} b5 {[%emt 0:01:55]} 17. g4 {[%emt 0:01:52]} f5 {[%emt 0:02:55]} 18. gxf5 {[%emt 0:01:21]} Rxf5 {[%emt 0:01:28]} 19. Kh1 {[%emt 0:06:07]} Ne7 {[%emt 0:02:18]} 20. Rg1 {[%emt 0:02:24]} Rf8 {[%emt 0:04:41]} 21. Rg4 {[%emt 0:04:23]} Nf5 {[%emt 0:02:48]} 22. Rdg1 {[%emt 0:04:56]} Bd7 {[%emt 0:03:25]} 23. Nh4 {[%emt 0:06:52]} Ne7 {[%emt 0:03:29]} (23... b4 $17 24. Ne2 Nxh4 25. Rxh4 Ba4) 24. Nf3 {[%emt 0:02:56]} Nf5 {[%emt 0:05:17]} 25. Nh4 {[%emt 0:05:46]} Ne7 {[%emt 0:00:16]} 26. Nd1 {[%emt 0:01:10]} Qe8 {[%emt 0:01:03]} 27. Bd2 {[%emt 0:04:03]} a5 $1 {[%emt 0:00:46]} 28. Ne3 {[%emt 0:00:50]} Bh6 {[%emt 0:02:25]} 29. Nhg2 {[%emt 0:04:59]} Qf7 {[%emt 0:01:45]} 30. Qh4 {[%emt 0:04:15]} Bg7 {[%emt 0:00:55]} 31. Ne1 {[%emt 0:04:15]} Nf5 $11 {[%emt 0:04:09]} 32. Nxf5 {[%emt 0:01:02]} Qxf5 {[%emt 0:00:13]} ({Of course not} 32... exf5 $6 33. Nf3 $14) 33. Qf2 {[%emt 0:01:17]} (33. Nf3 $11 {remains equal.}) 33... Qe4+ {[%emt 0:00:42]} 34. R1g2 {[%emt 0:00:44]} Rf5 {[%emt 0:00:59]} 35. Qe3 {[%emt 0:01:35]} Qxe3 {[%emt 0:00:23]} 36. Bxe3 {[%emt 0:00:02]} Raf8 {[%emt 0:01:04]} 37. R2g3 {[%emt 0:06:37]} Kf7 {[%emt 0:01:33]} 38. Nf3 {[%emt 0:00:39]} Ke8 {[%emt 0:00:58]} 39. Rh3 {[%emt 0:01:36]} Rh8 {[%emt 0:00:27]} 40. Ng5 {[%emt 0:02:34]} h5 {[%emt 0:00:27]} 41. Rg1 {[%emt 0:00:54]} Bh6 {[%emt 0:00:40]} 42. Rhg3 {[%emt 0:00:46]} Bxg5 {[%emt 0:00:28]} 43. Rxg5 {[%emt 0:00:51]} Rxg5 {[%emt 0:00:55]} 44. Rxg5 {[%emt 0:00:11]} Kf7 {[%emt 0:00:04]} 45. Rg3 {[%emt 0:01:18]} b4 {[%emt 0:00:23]} 46. Bd2 {[%emt 0:00:22]} Rb8 {[%emt 0:00:23]} 47. Kg1 {[%emt 0:01:34]} Ba4 {[%emt 0:00:39]} 48. c3 {[%emt 0:00:57]} b3 {[%emt 0:01:02]} 49. a3 {[%emt 0:00:14]} Bd7 {[%emt 0:00:22]} 50. Rf3 {[%emt 0:00:38]} Rg8 {[%emt 0:00:19]} 51. Be1 {[%emt 0:00:18]} Kg7 {[%emt 0:00:37]} 52. Bh4 {[%emt 0:00:10]} a4 {[%emt 0:00:41]} 53. Bf6+ {[%emt 0:00:24]} Kh7 {[%emt 0:00:13]} 54. Kg2 {[%emt 0:00:22]} Rf8 {[%emt 0:00:30]} 55. Kg3 {[%emt 0:00:12]} Re8 {[%emt 0:00:33]} 56. Kh4 {[%emt 0:00:18]} Bc8 {[%emt 0:00:25]} 57. Kg5 {[%emt 0:00:35]} Bd7 {[%emt 0:00:20]} 58. Re3 {[%emt 0:01:16]} 1/2-1/2

[Event "Nordic Youth-ch A 2019"]
[Site "Borgarnes"]
[Date "2019.02.17"]
[Round "6.12"]
[White "Davidsson, Oskar Vikingur"]
[Black "Ehrenreich, Simon"]
[Result "0-1"]
[ECO "B06"]
[WhiteElo "1941"]
[BlackElo "1756"]
[Annotator "NA"]
[PlyCount "74"]
[EventDate "2019.02.03"]
[EventType "swiss"]
[EventCountry "ISL"]
[SourceTitle "playchess.com"]
[Source "ChessBase"]
[SourceQuality "1"]
[TimeControl "5400+30"]

1. e4 g6 2. d4 Bg7 3. Nc3 d6 4. Be2 a6 5. a4 {B06: Modern Defence} (5. h4 h5 6. Nf3 b5 7. Ng5 Bb7 8. f3 Nd7 9. a4 b4 10. Nd5 Bxd5 11. exd5 Ngf6 12. c4 bxc3 13. bxc3 Nxd5 {0-1 (31) Yeritsyan,A (2372)-Seliverstov,V (2462) St Petersburg 2018}) 5... Nd7 6. Be3 b6 7. Nf3 c5 8. O-O {[%emt 0:06:20]} Bb7 {[%emt 0:05:41]} 9. Re1 {[%emt 0:01:04]} Rc8 $146 ({Predecessor:} 9... Ngf6 10. e5 Ng4 11. exd6 Nxe3 12. dxe7 Qxe7 13. fxe3 Qxe3+ 14. Kh1 {1-0 (46) Ljubarskij,J (2283)-Rychlik,K (2069) Sooden Allendorf 2015}) 10. Qd2 Qc7 {[%emt 0:11:16]} 11. Bf1 {[%emt 0:06:31]} Ngf6 {[%emt 0:02:05]} 12. e5 {[%emt 0:06:43]} dxe5 {[%emt 0:02:35]} 13. dxe5 {[%emt 0:00:10]} Nxe5 {[%emt 0:05:22]} 14. Nxe5 {[%emt 0:00:38]} Qxe5 {[%emt 0:00:08]} 15. Bh6 {[%emt 0:00:26]} Bxh6 {[%emt 0:01:04]} 16. Qxh6 {[%emt 0:00:53]} Qd6 {[%emt 0:08:04]} 17. Rad1 {[%emt 0:02:05]} Qc6 {[%emt 0:01:31]} 18. f3 {[%emt 0:01:13]} Rg8 {[%emt 0:22:59]} 19. Bc4 {[%emt 0:03:04]} g5 {[%emt 0:09:52]} 20. Nd5 {[%emt 0:04:10]} ({Better is} 20. Bb5 $16 axb5 21. axb5) 20... Nxd5 {[%emt 0:00:59]} 21. Qxh7 {[%emt 0:00:07]} Qg6 {[%emt 0:03:52]} 22. Qxg6 {[%emt 0:00:09]} Rxg6 {[%emt 0:00:07]} 23. Bxd5 {[%emt 0:00:05]} Bxd5 {[%emt 0:01:23]} 24. Rxd5 {[%emt 0:00:02]} Rd8 {[%emt 0:00:42]} 25. Rde5 {[%emt 0:00:08]} e6 {[%emt 0:00:39]} 26. a5 {[%emt 0:00:18]} Rb8 {[%emt 0:12:21]} 27. b3 {[%emt 0:00:53]} Kd7 {[%emt 0:03:01]} 28. axb6 {[%emt 0:00:21]} Kc6 {[%emt 0:00:09]} 29. Ra1 {[%emt 0:00:58]} Rxb6 {[%emt 0:00:21]} 30. Ra5 {[%emt 0:01:08]} Rb5 {[%emt 0:05:50]} 31. Rxa6+ {[%emt 0:00:16]} Kb7 {[%emt 0:01:49]} 32. Ra3 {[%emt 0:00:32]} Kc6 {[%emt 0:00:22]} 33. Kf2 {[%emt 0:00:50]} Kd6 {[%emt 0:00:47]} 34. Re2 {[%emt 0:00:10]} Kc6 {[%emt 0:01:15]} 35. Ke3 {[%emt 0:00:39]} Kb6 {[%emt 0:00:47]} 36. Kd3 {[%emt 0:00:36]} Rg8 {[%emt 0:00:27]} 37. Re5 $19 {[%emt 0:01:47]} (37. c3 $18) 37... c4+ {[%emt 0:00:58]} 0-1

[Event "Nordic Youth-ch A 2019"]
[Site "Borgarnes"]
[Date "2019.02.17"]
[Round "6.13"]
[White "Shehzad, Shazil"]
[Black "Soderstrom, Adrian"]
[Result "1-0"]
[ECO "B76"]
[WhiteElo "1959"]
[BlackElo "2138"]
[Annotator "NA"]
[PlyCount "107"]
[EventDate "2019.02.03"]
[EventType "swiss"]
[EventCountry "ISL"]
[SourceTitle "playchess.com"]
[Source "ChessBase"]
[SourceQuality "1"]
[TimeControl "5400+30"]

1. e4 c5 2. Nf3 d6 3. d4 cxd4 4. Nxd4 Nf6 5. Nc3 g6 6. Be3 Bg7 7. f3 O-O 8. Qd2 Nc6 9. O-O-O d5 10. Qe1 e5 11. Nxc6 bxc6 {[%emt 0:30:50]} 12. exd5 {[%emt 0:00:55]} cxd5 {[%emt 0:00:30]} 13. Bg5 {[%emt 0:00:12]} Bb7 {[%emt 0:23:33] B76: Sicilian Dragon: Yugoslav Attack, 9 g4 and 9 0-0-0} 14. Bc4 {[%emt 0:02:53]} Qb6 {[%emt 0:07:08]} 15. Bxf6 {[%emt 0:04:07]} Bxf6 {[%emt 0:00:56]} 16. Bxd5 $146 {[%emt 0:01:05]} ({Predecessor:} 16. Nxd5 Bxd5 17. Rxd5 e4 18. Rb5 Qc7 19. Qxe4 Rad8 20. Rb7 Qa5 21. c3 {1-0 (41) Krzyzanowski,M (2473)-Kopta,P (2210) Klatovy 2018}) 16... Rab8 {[%emt 0:01:51]} 17. Bb3 {[%emt 0:01:23]} Rfc8 {[%emt 0:03:35]} 18. h4 {[%emt 0:03:07]} a5 {[%emt 0:03:43]} 19. Rd7 {[%emt 0:06:09]} Rf8 {[%emt 0:03:45]} 20. a4 {[%emt 0:03:39]} Qc5 {[%emt 0:07:48]} 21. Kb1 {[%emt 0:14:00]} Bc6 {[%emt 0:01:39]} 22. Rd3 {[%emt 0:01:40]} Rfc8 {[%emt 0:02:03]} 23. h5 {[%emt 0:02:28]} g5 {[%emt 0:05:22]} 24. Qd2 {[%emt 0:02:00]} Be7 {[%emt 0:00:52]} 25. h6 {[%emt 0:01:45]} Qb4 {[%emt 0:02:07]} 26. Rh5 {[%emt 0:05:24]} Qf4 {[%emt 0:00:08]} 27. Nd5 {[%emt 0:11:18]} Bxd5 {[%emt 0:00:21]} 28. Qxf4 {[%emt 0:01:24]} ({Weaker is} 28. Bxd5 Rb4 $16) 28... exf4 {[%emt 0:00:27]} 29. Rxd5 {[%emt 0:00:14]} Bd8 {[%emt 0:03:17]} 30. Rh1 {[%emt 0:02:26]} Kf8 {[%emt 0:00:49]} 31. Re1 {[%emt 0:00:49]} Ra8 {[%emt 0:00:53]} 32. Rde5 {[%emt 0:03:27]} Bf6 {[%emt 0:00:27]} 33. Rf5 {[%emt 0:00:14]} Ra6 {[%emt 0:00:05]} 34. Rd1 {[%emt 0:01:33]} Rc7 {[%emt 0:01:12]} 35. Rdd5 {[%emt 0:00:40]} Rca7 {[%emt 0:01:42]} 36. Rb5 {[%emt 0:01:32]} Bd8 {[%emt 0:00:34]} 37. Rfd5 {[%emt 0:01:27]} Ke8 {[%emt 0:01:05]} (37... Ke7 {might work better.} 38. Rxg5 Rxh6) 38. Bc4 {[%emt 0:02:10]} Rc6 {[%emt 0:01:22]} 39. Bd3 {[%emt 0:01:40]} Rd7 {[%emt 0:00:23]} 40. Rxd7 {[%emt 0:10:52]} Kxd7 $18 {[%emt 0:00:00]} 41. Rb7+ {[%emt 0:00:26]} Rc7 {[%emt 0:00:15]} 42. Rxc7+ {[%emt 0:00:51]} Bxc7 {[%emt 0:00:06]} 43. Bxh7 {[%emt 0:00:36]} Ke6 {[%emt 0:00:18]} 44. c3 {[%emt 0:02:07]} Bd6 {[%emt 0:01:20]} 45. Bg8 {[%emt 0:05:21]} Be5 {[%emt 0:01:24]} 46. Kc2 {[%emt 0:00:36]} g4 {[%emt 0:00:05]} 47. fxg4 {[%emt 0:01:10]} Kf6 {[%emt 0:00:27]} 48. h7 {[%emt 0:00:22]} Kg5 {[%emt 0:00:04]} 49. Bxf7 {[%emt 0:00:20]} Kxg4 {[%emt 0:00:05]} 50. Bd5 {[%emt 0:00:30]} Bf6 {[%emt 0:00:33]} 51. b4 {[%emt 0:00:36]} axb4 {[%emt 0:00:17]} 52. cxb4 {[%emt 0:00:04]} Kf5 {[%emt 0:00:03]} 53. a5 {[%emt 0:01:09]} Ke5 {[%emt 0:00:03]} 54. a6 {[%emt 0:00:14]} 1-0

[Event "Nordic Youth-ch A 2019"]
[Site "Borgarnes"]
[Date "2019.02.17"]
[Round "6.15"]
[White "Moller, Albert Mechlenburg"]
[Black "Dale, Gunnar Brandshaug"]
[Result "0-1"]
[ECO "D35"]
[WhiteElo "1845"]
[BlackElo "1889"]
[Annotator "NA"]
[PlyCount "74"]
[EventDate "2019.02.03"]
[EventType "swiss"]
[EventCountry "ISL"]
[SourceTitle "playchess.com"]
[Source "ChessBase"]
[SourceQuality "1"]
[TimeControl "5400+30"]

1. c4 {[%emt 0:00:00]} e6 {[%emt 0:00:00]} 2. Nc3 {[%emt 0:00:00]} d5 {[%emt 0:00:27]} 3. d4 {[%emt 0:00:26]} Nf6 {[%emt 0:00:17]} 4. g3 {[%emt 0:01:14]} Be7 {[%emt 0:00:51]} 5. Bg2 {[%emt 0:00:31]} O-O {[%emt 0:00:19]} 6. e3 {[%emt 0:03:38]} c6 {[%emt 0:03:17]} 7. Nge2 {[%emt 0:03:01]} Nbd7 {[%emt 0:01:09]} 8. O-O {[%emt 0:03:24]} dxc4 {[%emt 0:03:28]} 9. Qc2 {[%emt 0:02:10]} Qc7 {[%emt 0:02:29]} 10. Ne4 {[%emt 0:01:25]} e5 {[%emt 0:09:05]} 11. Qxc4 {[%emt 0:02:20]} Nxe4 {[%emt 0:01:47]} 12. Bxe4 {[%emt 0:00:05]} Nf6 {[%emt 0:00:17]} 13. Bg2 {[%emt 0:00:17]} Be6 {[%emt 0:02:02]} 14. Qc2 {[%emt 0:00:48]} Rfd8 {[%emt 0:01:47]} 15. b3 {[%emt 0:01:48]} exd4 {[%emt 0:05:32]} 16. Nxd4 {[%emt 0:00:29]} Bd5 {[%emt 0:00:29]} 17. Bb2 {[%emt 0:03:44]} Bxg2 {[%emt 0:01:15]} 18. Kxg2 Nd5 {[%emt 0:01:57]} 19. a3 {[%emt 0:06:41]} Bf6 {[%emt 0:02:09]} 20. Rad1 {[%emt 0:01:56]} Rd7 {[%emt 0:06:51]} 21. Rd3 {[%emt 0:01:40]} Rad8 {[%emt 0:04:33]} 22. Rfd1 {[%emt 0:00:39]} c5 {[%emt 0:04:09]} 23. Nb5 {[%emt 0:13:48]} Qc6 {[%emt 0:00:51]} 24. e4 {[%emt 0:02:22]} Ne3+ {[%emt 0:08:56]} 25. Rxe3 {[%emt 0:00:11]} Rxd1 {[%emt 0:01:39]} 26. Bxf6 {[%emt 0:01:35]} Qxf6 {[%emt 0:01:22]} 27. Qc4 {[%emt 0:01:38]} R1d2 {[%emt 0:04:52]} 28. Rf3 {[%emt 0:00:22]} Qe6 {[%emt 0:00:41]} 29. Nxa7 {[%emt 0:04:44]} Qxc4 {[%emt 0:00:46]} 30. bxc4 {[%emt 0:00:06]} Rc2 {[%emt 0:01:30]} 31. Rb3 {[%emt 0:01:51]} Rdd2 {[%emt 0:00:40]} 32. Rxb7 {[%emt 0:00:24]} Rxf2+ {[%emt 0:00:50]} 33. Kg1 {[%emt 0:00:18]} Rg2+ {[%emt 0:00:09]} 34. Kf1 {[%emt 0:00:09]} g6 {[%emt 0:00:10]} 35. Rb1 {[%emt 0:05:29]} Rxh2 {[%emt 0:01:02]} 36. Kg1 {[%emt 0:00:04]} Rhg2+ {[%emt 0:00:12]} 37. Kh1 {[%emt 0:00:05]} Rxg3 {[%emt 0:00:12]} 0-1

[Event "Nordic Youth-ch A 2019"]
[Site "Borgarnes"]
[Date "2019.02.17"]
[Round "6.16"]
[White "Falkevall, Axel"]
[Black "Sokka, Valtteri"]
[Result "1-0"]
[ECO "C07"]
[WhiteElo "2070"]
[BlackElo "1475"]
[Annotator "NA"]
[PlyCount "129"]
[EventDate "2019.02.03"]
[EventType "swiss"]
[EventCountry "ISL"]
[SourceTitle "playchess.com"]
[Source "ChessBase"]
[SourceQuality "1"]
[TimeControl "5400+30"]

1. e4 {[%emt 0:00:00]} e6 {[%emt 0:00:00]} 2. d4 {[%emt 0:00:00]} d5 {[%emt 0:00:00]} 3. Nd2 {[%emt 0:00:00]} c5 {[%emt 0:00:11]} 4. exd5 cxd4 {[%emt 0:00:48]} 5. Ngf3 {[%emt 0:00:37]} Nf6 (5... Qxd5 6. Bc4 Qd7 7. O-O Nc6 8. Nb3 a6 9. a4 Nf6 10. Qe2 Bd6 11. Rd1 e5 12. Nbxd4 O-O 13. Nxc6 Qxc6 14. Bg5 {1-0 (29) Jones,G (2682)-McShane,L (2664) London 2018}) 6. dxe6 {[%emt 0:01:49] C07: French Tarrasch: 3...c5, 4 Ngf3 and 4 exd5 Qxd5} Bxe6 {[%emt 0:01:03]} 7. Bd3 {[%emt 0:01:02]} Bb4 $146 {[%emt 0:00:37]} ({Predecessor:} 7... Nc6 8. O-O h6 9. Nb3 Bd6 10. Bb5 O-O 11. Bxc6 bxc6 12. Nbxd4 Bd5 13. Nf5 {1-0 (61) Nurdin Uulu,S-Sultanbekov,K (1928) Bishkek 2018}) 8. O-O {[%emt 0:00:59]} Bxd2 {[%emt 0:00:37]} 9. Bxd2 {[%emt 0:00:21]} O-O {[%emt 0:00:18]} 10. Bb4 {[%emt 0:02:51]} Re8 11. Nxd4 {[%emt 0:02:18]} Kh8 {[%emt 0:01:50]} 12. Nxe6 {[%emt 0:01:57]} Rxe6 {[%emt 0:01:05]} 13. Bc3 {[%emt 0:01:16]} Nc6 14. Re1 Rxe1+ {[%emt 0:01:43]} 15. Qxe1 {[%emt 0:00:49]} Qd6 {[%emt 0:02:39]} 16. h3 {[%emt 0:02:22]} Re8 {[%emt 0:00:47]} 17. Qd2 {[%emt 0:02:25]} Ne5 {[%emt 0:02:02]} 18. Bb5 {[%emt 0:04:26]} Qxd2 {[%emt 0:00:16]} 19. Bxd2 {[%emt 0:00:10]} Rd8 {[%emt 0:00:48]} 20. Bc3 {[%emt 0:01:05]} Ng6 {[%emt 0:01:05]} 21. Re1 {[%emt 0:01:55]} Kg8 {[%emt 0:01:00]} 22. Bxf6 {[%emt 0:01:49]} gxf6 {[%emt 0:00:09]} 23. Re8+ {[%emt 0:00:06]} Rxe8 {[%emt 0:00:07]} 24. Bxe8 {[%emt 0:00:06]} Kf8 {[%emt 0:00:09]} 25. Bb5 {[%emt 0:00:11]} Ke7 {[%emt 0:00:38]} 26. Bd3 {[%emt 0:02:31]} Kd6 {[%emt 0:00:37]} 27. Bxg6 {[%emt 0:00:29]} fxg6 {[%emt 0:00:06]} 28. Kf1 {[%emt 0:00:03]} Kd5 {[%emt 0:00:17]} 29. Ke2 {[%emt 0:00:19]} Ke4 {[%emt 0:00:41]} 30. c3 {[%emt 0:00:33]} b5 $18 {[%emt 0:00:28]} 31. g3 {[%emt 0:02:11]} h6 {[%emt 0:01:05]} 32. f3+ {[%emt 0:00:23]} Ke5 {[%emt 0:00:30]} 33. Ke3 {[%emt 0:00:17]} g5 {[%emt 0:00:38]} 34. f4+ {[%emt 0:01:12]} gxf4+ {[%emt 0:04:12]} 35. gxf4+ {[%emt 0:00:06]} Kd5 {[%emt 0:00:15]} 36. Kd3 {[%emt 0:00:21]} f5 {[%emt 0:00:31]} 37. b3 {[%emt 0:01:40]} a6 {[%emt 0:01:15]} 38. b4 {[%emt 0:01:04]} Ke6 {[%emt 0:01:29]} 39. Kd4 {[%emt 0:00:11]} Kd6 {[%emt 0:01:22]} 40. h4 {[%emt 0:00:24]} Ke6 {[%emt 0:00:51]} 41. h5 {[%emt 0:00:54]} Kd6 {[%emt 0:00:21]} 42. a3 {[%emt 0:00:04]} Kd7 {[%emt 0:03:26]} 43. Kd5 {[%emt 0:00:12]} Kc7 {[%emt 0:00:11]} 44. Ke5 {[%emt 0:00:22]} Kc6 {[%emt 0:00:18]} 45. Kxf5 {[%emt 0:00:09]} Kd5 {[%emt 0:00:32]} 46. Kg6 {[%emt 0:00:16]} Kc4 {[%emt 0:00:18]} 47. f5 {[%emt 0:00:06]} Kxc3 {[%emt 0:00:06]} 48. f6 {[%emt 0:00:04]} Kb3 {[%emt 0:00:27]} 49. f7 {[%emt 0:00:30]} Kxa3 {[%emt 0:00:11]} 50. f8=Q {[%emt 0:00:09]} Ka4 {[%emt 0:00:17]} 51. Qa8 {[%emt 0:00:34]} Kxb4 {[%emt 0:00:18]} 52. Qxa6 {[%emt 0:00:06]} Kc5 {[%emt 0:00:11]} 53. Qxb5+ {[%emt 0:00:05]} Kxb5 {[%emt 0:00:06]} 54. Kxh6 {[%emt 0:00:05]} Kc5 {[%emt 0:00:15]} 55. Kg7 {[%emt 0:00:08]} Kd5 {[%emt 0:00:12]} 56. h6 {[%emt 0:00:10]} Ke4 {[%emt 0:00:11]} 57. h7 {[%emt 0:00:04]} Kd3 {[%emt 0:00:15]} 58. h8=Q {[%emt 0:00:10]} Kc2 {[%emt 0:00:16]} 59. Qh3 {[%emt 0:00:08]} Kb1 {[%emt 0:00:10]} 60. Qg2 {[%emt 0:00:07]} Ka1 {[%emt 0:00:07]} 61. Kf6 {[%emt 0:00:06]} Kb1 {[%emt 0:00:22]} 62. Ke5 {[%emt 0:00:06]} Ka1 {[%emt 0:00:17]} 63. Kd4 {[%emt 0:00:06]} Kb1 {[%emt 0:00:06]} 64. Kc3 {[%emt 0:00:04]} Ka1 {[%emt 0:00:10]} 65. Qb2# {[%emt 0:00:05]} 1-0

[Event "Nordic Youth-ch A 2019"]
[Site "Borgarnes"]
[Date "2019.02.17"]
[Round "6.17"]
[White "Kvaloy, Aksel Bu"]
[Black "Moller, Tomas"]
[Result "1-0"]
[ECO "B44"]
[WhiteElo "2066"]
[BlackElo "1226"]
[Annotator "NA"]
[PlyCount "79"]
[EventDate "2019.02.03"]
[EventType "swiss"]
[EventCountry "ISL"]
[SourceTitle "playchess.com"]
[Source "ChessBase"]
[SourceQuality "1"]
[TimeControl "5400+30"]

1. e4 {[%emt 0:00:00]} c5 {[%emt 0:00:00]} 2. Nf3 {[%emt 0:00:00]} e6 {[%emt 0:00:00]} 3. d4 {[%emt 0:00:00]} cxd4 {[%emt 0:00:00]} 4. Nxd4 {[%emt 0:00:00]} Nc6 {[%emt 0:00:42]} 5. Nb5 {[%emt 0:00:33]} d6 {[%emt 0:01:10]} 6. c4 {[%emt 0:00:19]} a6 {[%emt 0:01:14] B44: Sicilian: Taimanov: 5 Nb5} (6... Nf6 7. N5c3 b6 8. Be2 Bb7 9. Bf4 a6 10. O-O Be7 11. Re1 O-O 12. Bf1 Rc8 13. Nd2 Nd7 14. Rc1 Nce5 15. Bg3 Bh4 16. Bxh4 Qxh4 17. g3 Qe7 18. f4 Ng6 19. Nf3 Nf6 20. Qd2 Rfd8 {0-1 (65) Jumabayev,R (2594)-Adhiban,B (2671) Hamedan 2018 CBM 186 [Adhiban,B]}) 7. N5c3 {[%emt 0:00:17]} Qc7 {[%emt 0:01:49]} 8. Be2 {[%emt 0:00:55]} Nf6 {[%emt 0:01:23]} 9. O-O {[%emt 0:00:18]} Be7 {[%emt 0:01:28]} 10. Bf4 {[%emt 0:01:50]} O-O {[%emt 0:02:03]} 11. Nd2 {[%emt 0:00:48]} Bd7 $146 {[%emt 0:05:06]} ({Predecessor:} 11... Nd7 12. Re1 Re8 13. Rc1 Nce5 14. a3 b6 15. b4 Bb7 16. Bf1 Rac8 17. Qe2 Qb8 {1-0 (58) Castellanos Rodriguez,R (2505)-Kambrath,Y (2292) Lille 2013}) 12. Re1 {[%emt 0:01:56]} Rac8 {[%emt 0:01:35]} 13. Rc1 {[%emt 0:01:24]} Nd4 {[%emt 0:03:45]} 14. Bf1 {[%emt 0:04:28]} e5 {[%emt 0:05:01]} 15. Be3 {[%emt 0:01:43]} Qb8 {[%emt 0:06:11]} 16. Nb3 {[%emt 0:06:26]} Nxb3 {[%emt 0:03:28]} 17. Qxb3 {[%emt 0:00:14]} h6 {[%emt 0:03:43]} 18. Red1 {[%emt 0:04:28]} Be6 {[%emt 0:07:42]} 19. a4 {[%emt 0:10:58]} Rc6 {[%emt 0:06:05]} 20. Nd5 {[%emt 0:04:23]} Bxd5 {[%emt 0:03:22]} 21. exd5 {[%emt 0:00:29]} Rcc8 22. h3 {[%emt 0:04:13]} Ne4 {[%emt 0:04:16]} 23. Qc2 {[%emt 0:02:01]} Nc5 {[%emt 0:04:16]} (23... f5 $14) 24. b4 {[%emt 0:01:29]} Nd7 {[%emt 0:00:09]} 25. a5 {[%emt 0:00:48]} f5 {[%emt 0:01:57]} 26. f3 {[%emt 0:04:29]} Rc7 {[%emt 0:05:38]} (26... Bg5 $16 {might work better.} 27. Bxg5 hxg5) 27. c5 {[%emt 0:04:24]} f4 {[%emt 0:04:45]} (27... Bg5 {keeps fighting.} 28. Bxg5 hxg5) 28. Bf2 {[%emt 0:00:29]} Rfc8 {[%emt 0:02:22]} 29. Qa4 {[%emt 0:02:44]} Bf8 {[%emt 0:04:36]} (29... e4 {was worth a try.} 30. fxe4 Ne5) 30. c6 {[%emt 0:04:55]} Nf6 {[%emt 0:03:03]} 31. Bb6 {[%emt 0:01:36]} Rf7 {[%emt 0:01:27]} 32. cxb7 {[%emt 0:02:27]} Qxb7 {[%emt 0:01:20]} 33. Rxc8 {[%emt 0:00:54]} Qxc8 {[%emt 0:00:10]} 34. Qc6 {[%emt 0:00:36]} Qb8 {[%emt 0:02:22]} 35. Bxa6 {[%emt 0:01:08]} Nd7 {[%emt 0:00:19]} 36. Qc8 {[%emt 0:02:33]} Re7 $18 {[%emt 0:00:44]} 37. Qxb8 {[%emt 0:03:50]} Nxb8 {[%emt 0:00:15]} 38. Bb5 {[%emt 0:00:26]} Rb7 {[%emt 0:01:05]} 39. Bc6 {[%emt 0:00:25]} Rf7 {[%emt 0:00:08]} 40. b5 {[%emt 0:00:28]} 1-0